fUST/lending_fUST_20240614
["ID","MTS","AMOUNT","RATE_DAILY","PERIOD"]
[329426420,1718332246514,-1774.8,0.0001726,2]
[329426421,1718332246543,-500.0,0.0001726,2]
[329426422,1718332246562,-1110.21,0.0001726,2]
[329426423,1718332246578,-500.0,0.0001726,2]
[329426424,1718332246613,-500.0,0.0001726,2]
[329426425,1718332246627,-959.9,0.0001726,2]
[329426426,1718332246653,-1699.69,0.0001726,2]
[329426427,1718332246672,-500.0,0.0001726,2]
[329426428,1718332246684,-500.0,0.0001726,2]
[329426429,1718332246699,-2140.45,0.0001726,2]
[329426430,1718332246711,-500.0,0.0001726,2]
[329426431,1718332246736,-1673.3,0.0001726,2]
[329426432,1718332246769,-892.36,0.0001726,2]
[329426433,1718332246781,-489.37442235,0.0001726,2]
[329426434,1718332246808,-500.0,0.0001726,2]
[329426435,1718332246819,-2517.6,0.0001726,2]
[329426436,1718332246830,-705.01,0.0001726,2]
[329426437,1718332246841,-500.0,0.0001726,2]
[329426438,1718332246854,-500.0,0.0001726,2]
[329426439,1718332246904,-3790.68,0.0001726,2]
[329426440,1718332246931,-778.49,0.0001726,2]
[329426441,1718332246954,-500.0,0.0001726,2]
[329426442,1718332246966,-1244.81,0.0001726,2]
[329426443,1718332246985,-523.71827727,0.0001726,2]
[329426444,1718332246997,-500.0,0.0001726,2]
[329426445,1718332247011,-151.0,0.0001731,2]
[329426446,1718332247035,-638.53717177,0.00017426,2]
[329426447,1718332247046,-151.0,0.00017434,2]
[329426448,1718332247058,-500.0,0.00017534,2]
[329426449,1718332247069,-500.0,0.00017534,2]
[329426450,1718332247082,-500.0,0.00017534,2]
[329426451,1718332247108,-500.0,0.00017534,2]
[329426452,1718332247120,-500.0,0.00017534,2]
[329426453,1718332247132,-500.0,0.00017534,2]
[329426454,1718332247143,-1315.48,0.00017534,2]
[329426455,1718332247156,-2975.71,0.00017534,2]
[329426456,1718332247170,-500.0,0.00017534,2]
[329426457,1718332247186,-500.0,0.00017534,2]
[329426458,1718332247197,-1774.8,0.00017534,2]
[329426459,1718332247209,-500.0,0.00017534,2]
[329426460,1718332247225,-1110.21,0.00017534,2]
[329426461,1718332247236,-500.0,0.00017534,2]
[329426462,1718332247256,-500.0,0.00017534,2]
[329426463,1718332247269,-959.9,0.00017534,2]
[329426464,1718332247281,-1699.69,0.00017534,2]
[329426465,1718332247293,-500.0,0.00017534,2]
[329426466,1718332247305,-500.0,0.00017534,2]
[329426467,1718332247317,-2140.45,0.00017534,2]
[329426468,1718332247329,-500.0,0.00017534,2]
[329426469,1718332247341,-1673.3,0.00017534,2]
[329426470,1718332247353,-892.36,0.00017534,2]
[329426471,1718332247364,-500.0,0.00017534,2]
[329426472,1718332247379,-2517.6,0.00017534,2]
[329426473,1718332247390,-705.01,0.00017534,2]
[329426474,1718332247407,-500.0,0.00017534,2]
[329426475,1718332247418,-500.0,0.00017534,2]
[329426476,1718332247429,-3790.68,0.00017534,2]
[329426477,1718332247444,-778.49,0.00017534,2]
[329426478,1718332247455,-500.0,0.00017534,2]
[329426479,1718332247466,-1244.81,0.00017534,2]
[329426480,1718332247484,-500.0,0.00017534,2]
[329426481,1718332247496,-151.0,0.00017559,2]
[329426482,1718332247509,-151.0,0.00017683,2]
[329426483,1718332247521,-151.0,0.00017683,2]
[329426484,1718332247532,-162.0,0.00017755,2]
[329426485,1718332247544,-162.0,0.00017755,2]
[329426486,1718332247559,-162.0,0.00017755,2]
[329426487,1718332247570,-162.0,0.00017755,2]
[329426488,1718332247586,-162.0,0.00017755,2]
[329426489,1718332247602,-162.0,0.00017755,2]
[329426491,1718332247619,-162.0,0.00017755,2]
[329426493,1718332247632,-162.0,0.00017755,2]
[329426495,1718332247652,-162.0,0.00017755,2]
[329426498,1718332247665,-162.0,0.00017755,2]
[329426499,1718332247683,-162.0,0.00017755,2]
[329426500,1718332247694,-162.0,0.00017755,2]
[329426502,1718332247706,-162.0,0.00017755,2]
[329426504,1718332247719,-162.0,0.00017755,2]
[329426506,1718332247731,-162.0,0.00017755,2]
[329426508,1718332247741,-162.0,0.00017755,2]
[329426510,1718332247752,-162.0,0.00017755,2]
[329426511,1718332247764,-162.0,0.00017755,2]
[329426512,1718332247776,-162.0,0.00017755,2]
[329426513,1718332247790,-162.0,0.00017755,2]
[329426514,1718332247800,-162.0,0.00017755,2]
[329426515,1718332247810,-162.0,0.00017755,2]
[329426516,1718332247823,-162.0,0.00017755,2]
[329426517,1718332247834,-162.0,0.00017755,2]
[329426518,1718332247845,-162.0,0.00017755,2]
[329426519,1718332247863,-162.0,0.00017755,2]
[329426520,1718332247876,-162.0,0.00017755,2]
[329426521,1718332247889,-162.0,0.00017755,2]
[329426522,1718332247903,-162.0,0.00017755,2]
[329426523,1718332247930,-162.0,0.00017755,2]
[329426524,1718332247943,-162.0,0.00017755,2]
[329426525,1718332247957,-162.0,0.00017755,2]
[329426526,1718332247969,-162.0,0.00017755,2]
[329426527,1718332247981,-162.0,0.00017755,2]
[329426528,1718332247994,-162.0,0.00017755,2]
[329426529,1718332248007,-162.0,0.00017755,2]
[329426530,1718332248020,-162.0,0.00017755,2]
[329426531,1718332248031,-162.0,0.00017755,2]
[329426532,1718332248056,-162.0,0.00017755,2]
[329426533,1718332248087,-162.0,0.00017755,2]
[329426534,1718332248126,-162.0,0.00017755,2]
[329426535,1718332248138,-162.0,0.00017755,2]
[329426536,1718332248156,-162.0,0.00017755,2]
[329426537,1718332248171,-162.0,0.00017755,2]
[329426538,1718332248187,-162.0,0.00017755,2]
[329426539,1718332248225,-162.0,0.00017755,2]
[329426540,1718332248238,-162.0,0.00017755,2]
[329426541,1718332248249,-162.0,0.00017755,2]
[329426542,1718332248277,-162.0,0.00017755,2]
[329426543,1718332248295,-162.0,0.00017755,2]
[329426544,1718332248317,-162.0,0.00017755,2]
[329426545,1718332248339,-162.0,0.00017755,2]
[329426546,1718332248354,-162.0,0.00017755,2]
[329426547,1718332248368,-162.0,0.00017755,2]
[329426548,1718332248403,-162.0,0.00017755,2]
[329426549,1718332248444,-162.0,0.00017755,2]
[329426550,1718332248459,-162.0,0.00017755,2]
[329426551,1718332248478,-162.0,0.00017755,2]
[329426553,1718332248490,-162.0,0.00017755,2]
[329426555,1718332248501,-162.0,0.00017755,2]
[329426556,1718332248512,-162.0,0.00017755,2]
[329426557,1718332248533,-162.0,0.00017755,2]
[329426558,1718332248549,-162.0,0.00017755,2]
[329426559,1718332248565,-162.0,0.00017755,2]
[329426560,1718332248582,-162.0,0.00017755,2]
[329426561,1718332248598,-162.0,0.00017755,2]
[329426562,1718332248609,-162.0,0.00017755,2]
[329426563,1718332248628,-162.0,0.00017755,2]
[329426564,1718332248646,-162.0,0.00017755,2]
[329426565,1718332248673,-162.0,0.00017755,2]
[329426566,1718332248686,-162.0,0.00017755,2]
[329426567,1718332248697,-162.0,0.00017755,2]
[329426568,1718332248707,-162.0,0.00017755,2]
[329426569,1718332248719,-162.0,0.00017755,2]
[329426570,1718332248735,-162.0,0.00017755,2]
[329426571,1718332248747,-162.0,0.00017755,2]
[329426572,1718332248759,-162.0,0.00017755,2]
[329426573,1718332248773,-162.0,0.00017755,2]
[329426574,1718332248786,-162.0,0.00017755,2]
[329426575,1718332248798,-162.0,0.00017755,2]
[329426576,1718332248810,-162.0,0.00017755,2]
[329426577,1718332248823,-162.0,0.00017755,2]
[329426578,1718332248835,-162.0,0.00017755,2]
[329426579,1718332248878,-500.0,0.00017808,2]
[329426580,1718332248891,-411.18309933,0.00017808,2]
[329426581,1718332248914,-500.0,0.00017808,2]
[329426582,1718332248928,-500.0,0.00017808,2]
[329426583,1718332249054,-500.0,0.00017808,2]
[329426584,1718332249072,-500.0,0.00017808,2]
[329426585,1718332249108,-1315.48,0.00017808,2]
[329426586,1718332249132,-2975.71,0.00017808,2]
[329426587,1718332249143,-500.0,0.00017808,2]
[329426588,1718332249180,-500.0,0.00017808,2]
[329426589,1718332249193,-1774.8,0.00017808,2]
[329426590,1718332249219,-500.0,0.00017808,2]
[329426591,1718332249234,-1110.21,0.00017808,2]
[329426592,1718332249248,-500.0,0.00017808,2]
[329426593,1718332249261,-500.0,0.00017808,2]
[329426594,1718332249278,-959.9,0.00017808,2]
[329426595,1718332249296,-1699.69,0.00017808,2]
[329426596,1718332249330,-500.0,0.00017808,2]
[329426597,1718332249365,-500.0,0.00017808,2]
[329426598,1718332249394,-2140.45,0.00017808,2]
[329426599,1718332249411,-500.0,0.00017808,2]
[329426600,1718332249430,-1673.3,0.00017808,2]
[329426601,1718332249444,-892.36,0.00017808,2]
[329426602,1718332249456,-500.0,0.00017808,2]
[329426603,1718332249468,-2517.6,0.00017808,2]
[329426604,1718332249492,-705.01,0.00017808,2]
[329426605,1718332249506,-500.0,0.00017808,2]
[329426606,1718332249526,-500.0,0.00017808,2]
[329426607,1718332249557,-3790.68,0.00017808,2]
[329426608,1718332249582,-778.49,0.00017808,2]
[329426609,1718332249594,-151.0,0.00017808,2]
[329426610,1718332249612,-151.0,0.00017808,2]
[329426611,1718332249655,-500.0,0.00017808,2]
[329426612,1718332249682,-1244.81,0.00017808,2]
[329426613,1718332249709,-500.0,0.00017808,2]
[329426614,1718332249721,-221.63294842,0.00018,2]
[329426615,1718332249744,-2589.01377141,0.00018,2]
[329426616,1718332249774,-876.95081653,0.00018,2]
[329426617,1718332249788,-1355.76865896,0.00018,2]
[329426618,1718332249804,-476.76775304,0.00018,2]
[329426619,1718332249820,-1000.0,0.00018,6]
[329426620,1718332249893,-4000.0,0.00018,2]
[329426621,1718332249931,-155.13525701,0.00018,2]
[329426622,1718332249944,-1839.057605,0.00018,2]
[329426623,1718332249958,-782.6825259,0.0001805,2]
[329426624,1718332249969,-500.0,0.00018082,2]
[329426625,1718332249981,-500.0,0.00018082,2]
[329426626,1718332249992,-3200.0,0.00018082,2]
[329426627,1718332250003,-3200.0,0.00018082,2]
[329426628,1718332250014,-3200.0,0.00018082,2]
[329426629,1718332250025,-3200.0,0.00018082,2]
[329426630,1718332250036,-3200.0,0.00018082,2]
[329426631,1718332250060,-3200.0,0.00018082,2]
[329426632,1718332250077,-3200.0,0.00018082,2]
[329426633,1718332250089,-500.0,0.00018082,2]
[329426634,1718332250108,-3200.0,0.00018082,2]
[329426635,1718332250119,-3200.0,0.00018082,2]
[329426636,1718332250133,-2818.58932122,0.00018082,2]
[329426637,1718332250143,-500.0,0.00018082,2]
[329426638,1718332250154,-500.0,0.00018082,2]
[329426639,1718332250172,-1315.48,0.00018082,2]
[329426640,1718332250184,-2975.71,0.00018082,2]
[329426641,1718332250198,-500.0,0.00018082,2]
[329426642,1718332250209,-500.0,0.00018082,2]
[329426643,1718332250221,-1774.8,0.00018082,2]
[329426644,1718332250232,-500.0,0.00018082,2]
[329426645,1718332250243,-1110.21,0.00018082,2]
[329426646,1718332250260,-500.0,0.00018082,2]
[329426647,1718332250271,-500.0,0.00018082,2]
[329426648,1718332250296,-959.9,0.00018082,2]
[329426649,1718332250316,-1699.69,0.00018082,2]
[329426650,1718332250334,-500.0,0.00018082,2]
[329426651,1718332250360,-500.0,0.00018082,2]
[329426652,1718332250375,-2140.45,0.00018082,2]
[329426653,1718332250389,-500.0,0.00018082,2]
[329426654,1718332250405,-1673.3,0.00018082,2]
[329426655,1718332250419,-892.36,0.00018082,2]
[329426656,1718332250438,-500.0,0.00018082,2]
[329426657,1718332250450,-2517.6,0.00018082,2]
[329426658,1718332250474,-705.01,0.00018082,2]
[329426659,1718332250494,-500.0,0.00018082,2]
[329426660,1718332250507,-500.0,0.00018082,2]
[329426661,1718332250518,-3790.68,0.00018082,2]
[329426662,1718332250529,-778.49,0.00018082,2]
[329426663,1718332250543,-500.0,0.00018082,2]
[329426664,1718332250554,-1244.81,0.00018082,2]
[329426665,1718332250564,-500.0,0.00018082,2]
[329426666,1718332250574,-64634.14541678,0.000182,2]
[329426667,1718332250585,-300.0,0.000183,7]
[329426668,1718332250608,-500.0,0.00018356,2]
[329426669,1718332250620,-500.0,0.00018356,2]
[329426670,1718332250633,-500.0,0.00018356,2]
[329426671,1718332250651,-500.0,0.00018356,2]
[329426672,1718332250662,-500.0,0.00018356,2]
[329426673,1718332250677,-1315.48,0.00018356,2]
[329426674,1718332250688,-2975.71,0.00018356,2]
[329426675,1718332250698,-500.0,0.00018356,2]
[329426676,1718332250718,-500.0,0.00018356,2]
[329426677,1718332250736,-1774.8,0.00018356,2]
[329426678,1718332250748,-500.0,0.00018356,2]
[329426679,1718332250759,-1110.21,0.00018356,2]
[329426680,1718332250770,-500.0,0.00018356,2]
[329426681,1718332250783,-500.0,0.00018356,2]
[329426682,1718332250803,-959.9,0.00018356,2]
[329426683,1718332250816,-1699.69,0.00018356,2]
[329426684,1718332250827,-500.0,0.00018356,2]
[329426685,1718332250860,-161.37706892,0.00018356,2]
[329426686,1718332250904,-2140.45,0.00018356,2]
[329426687,1718332250918,-500.0,0.00018356,2]
[329426688,1718332250931,-1673.3,0.00018356,2]
[329426689,1718332250942,-892.36,0.00018356,2]
[329426690,1718332250953,-500.0,0.00018356,2]
[329426691,1718332250964,-2517.6,0.00018356,2]
[329426692,1718332250977,-705.01,0.00018356,2]
[329426693,1718332251005,-500.0,0.00018356,2]
[329426694,1718332251023,-500.0,0.00018356,2]
[329426695,1718332251037,-3790.68,0.00018356,2]
[329426696,1718332251072,-778.49,0.00018356,2]
[329426697,1718332251115,-500.0,0.00018356,2]
[329426698,1718332251126,-1244.81,0.00018356,2]
[329426699,1718332251154,-500.0,0.00018356,2]
[329426700,1718332251164,-155.0,0.0001845,2]
[329426701,1718332251188,-160.0,0.00018463,2]
[329426702,1718332251201,-607.00972121,0.000185,2]
[329426703,1718332251229,-1000.0,0.000185,2]
[329426704,1718332251241,-500.0,0.0001863,2]
[329426705,1718332251255,-213.54296703,0.0001863,2]
[329426706,1718332251266,-499.38587143,0.0001863,2]
[329426707,1718332251280,-500.0,0.0001863,2]
[329426708,1718332251293,-500.0,0.0001863,2]
[329426709,1718332251305,-1315.48,0.0001863,2]
[329426710,1718332251318,-2975.71,0.0001863,2]
[329426711,1718332251329,-500.0,0.0001863,2]
[329426712,1718332251342,-500.0,0.0001863,2]
[329426713,1718332251356,-1774.8,0.0001863,2]
[329426714,1718332251368,-500.0,0.0001863,2]
[329426715,1718332251379,-1110.21,0.0001863,2]
[329426716,1718332251391,-500.0,0.0001863,2]
[329426717,1718332251406,-500.0,0.0001863,2]
[329426718,1718332251418,-959.9,0.0001863,2]
[329426719,1718332251440,-1699.69,0.0001863,2]
[329426720,1718332251456,-500.0,0.0001863,2]
[329426721,1718332251468,-2140.45,0.0001863,2]
[329426722,1718332251493,-500.0,0.0001863,2]
[329426723,1718332251505,-1673.3,0.0001863,2]
[329426724,1718332251516,-892.36,0.0001863,2]
[329426725,1718332251536,-500.0,0.0001863,2]
[329426726,1718332251548,-2517.6,0.0001863,2]
[329426727,1718332251559,-705.01,0.0001863,2]
[329426728,1718332251570,-500.0,0.0001863,2]
[329426729,1718332251582,-185.3670497,0.0001863,2]
[329426730,1718332251597,-3790.68,0.0001863,2]
[329426731,1718332251614,-778.49,0.0001863,2]
[329426732,1718332251624,-500.0,0.0001863,2]
[329426733,1718332251636,-1244.81,0.0001863,2]
[329426734,1718332251649,-250.0,0.0001863,2]
[329426735,1718332251661,-1052.76575638,0.00018795,2]
[329426736,1718332251676,-6950.91625507,0.000189,2]
[329426737,1718332251687,-634.38241415,0.00018904,2]
[329426738,1718332251700,-500.0,0.00018904,2]
[329426739,1718332251711,-500.0,0.00018904,2]
[329426740,1718332251723,-1315.48,0.00018904,2]
[329426741,1718332251735,-2975.71,0.00018904,2]
[329426742,1718332251745,-617.91854406,0.00018904,2]
[329426743,1718332251757,-500.0,0.00018904,2]
[329426744,1718332251768,-1774.8,0.00018904,2]
[329426745,1718332251780,-500.0,0.00018904,2]
[329426746,1718332251792,-1110.21,0.00018904,2]
[329426747,1718332251806,-500.0,0.00018904,2]
[329426748,1718332251818,-500.0,0.00018904,2]
[329426749,1718332251829,-959.9,0.00018904,2]
[329426750,1718332251841,-1699.69,0.00018904,2]
[329426751,1718332251855,-500.0,0.00018904,2]
[329426752,1718332251882,-2140.45,0.00018904,2]
[329426753,1718332251910,-500.0,0.00018904,2]
[329426754,1718332251921,-1673.3,0.00018904,2]
[329426755,1718332251931,-892.36,0.00018904,2]
[329426756,1718332251942,-263.94835415,0.00018904,2]
[329426757,1718332251965,-2517.6,0.00018904,2]
[329426758,1718332251975,-705.01,0.00018904,2]
[329426759,1718332251986,-500.0,0.00018904,2]
[329426760,1718332251996,-3790.68,0.00018904,2]
[329426761,1718332252007,-778.49,0.00018904,2]
[329426762,1718332252017,-500.0,0.00018904,2]
[329426763,1718332252028,-1244.81,0.00018904,2]
[329426764,1718332252039,-7271.83096458,0.00019,2]
[329426765,1718332252050,-3106.1804899,0.00019,10]
[329426766,1718332252060,-1000.0,0.00019,7]
[329426767,1718332252070,-163.16797957,0.00019,2]
[329426768,1718332252081,-226.09244547,0.00019,2]
[329426769,1718332252102,-1000.0,0.00019,2]
[329426770,1718332252121,-320.0,0.0001901,2]
[329426771,1718332252136,-185.25689025,0.000191,2]
[329426772,1718332252147,-500.0,0.00019178,2]
[329426773,1718332252163,-193.01756298,0.00019178,2]
[329426774,1718332252177,-222.78536149,0.00019178,2]
[329426775,1718332252191,-496.04016657,0.00019178,2]
[329426776,1718332252202,-200.0,0.00019178,2]
[329426777,1718332252216,-500.0,0.00019178,2]
[329426778,1718332252230,-500.0,0.00019178,2]
[329426779,1718332252248,-500.0,0.00019178,2]
[329426780,1718332252276,-437.00064974,0.00019178,2]
[329426781,1718332252304,-500.0,0.00019178,2]
[329426782,1718332252317,-500.0,0.00019178,2]
[329426783,1718332252329,-500.0,0.00019178,2]
[329426784,1718332252368,-500.0,0.00019178,2]
[329426785,1718332252379,-233.97551669,0.00019178,2]
[329426786,1718332252390,-500.0,0.00019178,2]
[329426787,1718332252403,-303.77505741,0.00019178,2]
[329426788,1718332252421,-425.25842563,0.00019178,2]
[329426789,1718332252441,-500.0,0.00019178,2]
[329426790,1718332252452,-500.0,0.00019178,2]
[329426791,1718332252465,-500.0,0.00019178,2]
[329426792,1718332252475,-500.0,0.00019178,2]
[329426793,1718332252486,-500.0,0.00019178,2]
[329426794,1718332252496,-500.0,0.00019178,2]
[329426795,1718332252507,-500.0,0.00019178,2]
[329426796,1718332252518,-500.0,0.00019178,2]
[329426797,1718332252530,-436.54315158,0.00019178,2]
[329426798,1718332252542,-500.0,0.00019178,2]
[329426799,1718332252554,-205.0,0.00019178,2]
[329426800,1718332252573,-238.82554202,0.00019178,2]
[329426801,1718332252590,-500.0,0.00019178,2]
[329426802,1718332252614,-500.0,0.00019178,2]
[329426803,1718332252627,-500.0,0.00019178,2]
[329426804,1718332252640,-500.0,0.00019178,2]
[329426805,1718332252654,-500.0,0.00019178,2]
[329426806,1718332252665,-500.0,0.00019178,2]
[329426807,1718332252680,-179.07558751,0.00019178,2]
[329426808,1718332252691,-500.0,0.00019178,2]
[329426809,1718332252702,-500.0,0.00019178,2]
[329426810,1718332252716,-500.0,0.00019178,2]
[329426811,1718332252730,-500.0,0.00019178,2]
[329426812,1718332252745,-500.0,0.00019178,2]
[329426813,1718332252772,-500.0,0.00019178,2]
[329426814,1718332252783,-500.0,0.00019178,2]
[329426815,1718332252807,-500.0,0.00019178,2]
[329426816,1718332252819,-500.0,0.00019178,2]
[329426817,1718332252834,-500.0,0.00019178,2]
[329426818,1718332252846,-500.0,0.00019178,2]
[329426819,1718332252884,-500.0,0.00019178,2]
[329426820,1718332252898,-500.0,0.00019178,2]
[329426821,1718332252912,-500.0,0.00019178,2]
[329426822,1718332252926,-500.0,0.00019178,2]
[329426823,1718332252938,-627.99902601,0.00019178,2]
[329426824,1718332252951,-500.0,0.00019178,2]
[329426825,1718332252967,-500.0,0.00019178,2]
[329426826,1718332252982,-500.0,0.00019178,2]
[329426827,1718332253004,-500.0,0.00019178,2]
[329426828,1718332253015,-500.0,0.00019178,2]
[329426829,1718332253042,-500.0,0.00019178,2]
[329426830,1718332253060,-500.0,0.00019178,2]
[329426831,1718332253093,-500.0,0.00019178,2]
[329426832,1718332253112,-500.0,0.00019178,2]
[329426833,1718332253131,-500.0,0.00019178,2]
[329426834,1718332253145,-500.0,0.00019178,2]
[329426835,1718332253160,-500.0,0.00019178,2]
[329426836,1718332253192,-500.0,0.00019178,2]
[329426837,1718332253213,-500.0,0.00019178,2]
[329426838,1718332253225,-500.0,0.00019178,2]
[329426839,1718332253236,-500.0,0.00019178,2]
[329426840,1718332253247,-500.0,0.00019178,2]
[329426841,1718332253258,-500.0,0.00019178,2]
[329426842,1718332253273,-500.0,0.00019178,2]
[329426843,1718332253292,-500.0,0.00019178,2]
[329426844,1718332253316,-500.0,0.00019178,2]
[329426845,1718332253331,-500.0,0.00019178,2]
[329426846,1718332253355,-500.0,0.00019178,2]
[329426847,1718332253368,-550.0,0.00019178,2]
[329426848,1718332253381,-500.0,0.00019178,2]
[329426849,1718332253394,-500.0,0.00019178,2]
[329426850,1718332253408,-500.0,0.00019178,2]
[329426851,1718332253421,-500.0,0.00019178,2]
[329426852,1718332253442,-500.0,0.00019178,2]
[329426853,1718332253459,-500.0,0.00019178,2]
[329426854,1718332253500,-500.0,0.00019178,2]
[329426855,1718332253513,-500.0,0.00019178,2]
[329426856,1718332253524,-500.0,0.00019178,2]
[329426857,1718332253537,-500.0,0.00019178,2]
[329426858,1718332253548,-500.0,0.00019178,2]
[329426859,1718332253562,-500.0,0.00019178,2]
[329426860,1718332253579,-500.0,0.00019178,2]
[329426861,1718332253615,-250.0,0.00019178,2]
[329426862,1718332253639,-500.0,0.00019178,2]
[329426863,1718332253650,-500.0,0.00019178,2]
[329426864,1718332253661,-500.0,0.00019178,2]
[329426865,1718332253675,-500.0,0.00019178,2]
[329426866,1718332253685,-500.0,0.00019178,2]
[329426867,1718332253697,-500.0,0.00019178,2]
[329426868,1718332253708,-500.0,0.00019178,2]
[329426869,1718332253727,-500.0,0.00019178,2]
[329426870,1718332253752,-500.0,0.00019178,2]
[329426871,1718332253770,-500.0,0.00019178,2]
[329426872,1718332253790,-550.0,0.00019178,2]
[329426873,1718332253828,-418.35987901,0.00019178,2]
[329426874,1718332253844,-500.0,0.00019178,2]
[329426875,1718332253865,-500.0,0.00019178,2]
[329426876,1718332253876,-500.0,0.00019178,2]
[329426877,1718332253889,-324.61135229,0.00019178,2]
[329426878,1718332253902,-500.0,0.00019178,2]
[329426879,1718332253913,-500.0,0.00019178,2]
[329426880,1718332253937,-500.0,0.00019178,2]
[329426881,1718332253953,-500.0,0.00019178,2]
[329426882,1718332253982,-500.0,0.00019178,2]
[329426883,1718332253996,-500.0,0.00019178,2]
[329426884,1718332254008,-500.0,0.00019178,2]
[329426885,1718332254019,-500.0,0.00019178,2]
[329426886,1718332254036,-500.0,0.00019178,2]
[329426887,1718332254048,-500.0,0.00019178,2]
[329426888,1718332254060,-618.49624653,0.00019178,2]
[329426889,1718332254182,-500.0,0.00019178,2]
[329426890,1718332254210,-500.0,0.00019178,2]
[329426891,1718332254225,-500.0,0.00019178,2]
[329426892,1718332254240,-500.0,0.00019178,2]
[329426893,1718332254250,-500.0,0.00019178,2]
[329426894,1718332254262,-500.0,0.00019178,2]
[329426895,1718332254284,-500.0,0.00019178,2]
[329426896,1718332254301,-500.0,0.00019178,2]
[329426897,1718332254318,-500.0,0.00019178,2]
[329426898,1718332254337,-500.0,0.00019178,2]
[329426899,1718332254352,-500.0,0.00019178,2]
[329426900,1718332254363,-500.0,0.00019178,2]
[329426901,1718332254376,-500.0,0.00019178,2]
[329426902,1718332254390,-500.0,0.00019178,2]
[329426903,1718332254401,-500.0,0.00019178,2]
[329426904,1718332254411,-500.0,0.00019178,2]
[329426905,1718332254421,-500.0,0.00019178,2]
[329426906,1718332254431,-500.0,0.00019178,2]
[329426907,1718332254442,-500.0,0.00019178,2]
[329426908,1718332254453,-500.0,0.00019178,2]
[329426909,1718332254463,-500.0,0.00019178,2]
[329426910,1718332254479,-500.0,0.00019178,2]
[329426911,1718332254492,-500.0,0.00019178,2]
[329426912,1718332254505,-500.0,0.00019178,2]
[329426913,1718332254516,-500.0,0.00019178,2]
[329426914,1718332254533,-500.0,0.00019178,2]
[329426915,1718332254547,-500.0,0.00019178,2]
[329426916,1718332254558,-500.0,0.00019178,2]
[329426917,1718332254574,-500.0,0.00019178,2]
[329426918,1718332254585,-500.0,0.00019178,2]
[329426919,1718332254598,-500.0,0.00019178,2]
[329426920,1718332254612,-500.0,0.00019178,2]
[329426921,1718332254635,-500.0,0.00019178,2]
[329426922,1718332254652,-500.0,0.00019178,2]
[329426923,1718332254663,-281.4358565,0.00019178,2]
[329426924,1718332254677,-500.0,0.00019178,2]
[329426925,1718332254688,-500.0,0.00019178,2]
[329426926,1718332254721,-500.0,0.00019178,2]
[329426927,1718332254737,-200.0,0.00019178,2]
[329426928,1718332254750,-494.23246968,0.00019178,2]
[329426929,1718332254762,-500.0,0.00019178,2]
[329426930,1718332254772,-500.0,0.00019178,2]
[329426931,1718332254784,-500.0,0.00019178,2]